fUSD/lending_fUSD_20251112
["ID","MTS","AMOUNT","RATE_DAILY","PERIOD"]
[393787276,1762986641411,-151.0,0.00040636,120]
[393787277,1762986641420,-151.0,0.00040636,120]
[393787278,1762986641429,-270.651512,0.00040636,120]
[393787279,1762986641438,-151.0,0.00040636,30]
[393787280,1762986641448,-151.755824,0.00040636,120]
[393787281,1762986641457,-151.0,0.00040636,120]
[393787282,1762986641466,-170.049517,0.00040636,120]
[393787283,1762986641475,-151.0,0.00040636,120]
[393787284,1762986641485,-151.0,0.00040636,120]
[393787285,1762986641495,-151.0,0.00040636,120]
[393787286,1762986641505,-153.311613,0.00040636,120]
[393787287,1762986641514,-152.552658,0.00040636,120]
[393787288,1762986641523,-2491.91381,0.00040636,5]
[393787289,1762986641532,-151.0,0.00040636,120]
[393787290,1762986641542,-151.0,0.00040636,120]
[393787291,1762986641552,-171.031018,0.00040636,120]
[393787292,1762986641561,-157.763248,0.00040636,120]
[393787293,1762986641570,-151.0,0.00040636,120]
[393787294,1762986641579,-151.0,0.00040636,120]
[393787295,1762986641588,-151.0,0.00040636,120]
[393787296,1762986641598,-263.119692,0.00040636,120]
[393787297,1762986641608,-151.0,0.00040636,120]
[393787298,1762986641617,-151.0,0.00040636,120]
[393787299,1762986641626,-151.0,0.00040636,120]
[393787300,1762986641635,-151.0,0.00040636,120]
[393787301,1762986641645,-151.0,0.00040636,120]
[393787302,1762986641654,-151.0,0.00040636,120]
[393787303,1762986641663,-151.0,0.00040636,120]
[393787304,1762986641673,-151.0,0.00040636,120]
[393787305,1762986641683,-151.0,0.00040636,120]
[393787306,1762986641694,-151.0,0.00040636,120]
[393787307,1762986641703,-151.0,0.00040636,120]
[393787308,1762986641713,-151.0,0.00040636,120]
[393787309,1762986641723,-151.0,0.00040636,120]
[393787310,1762986641732,-151.0,0.00040636,120]
[393787311,1762986641741,-151.0,0.00040636,120]
[393787312,1762986641751,-151.0,0.00040636,120]
[393787313,1762986641760,-151.0,0.00040636,120]
[393787314,1762986641769,-151.0,0.00040636,120]
[393787315,1762986641778,-151.0,0.00040636,120]
[393787316,1762986641787,-151.0,0.00040636,120]
[393787317,1762986641801,-153.9903,0.00040636,120]
[393787318,1762986641810,-151.0,0.00040636,120]
[393787319,1762986641820,-151.0,0.00040636,120]
[393787320,1762986641829,-151.0,0.00040636,120]
[393787321,1762986641838,-151.0,0.00040636,120]
[393787322,1762986641847,-151.0,0.00040636,120]
[393787323,1762986641856,-151.0,0.00040636,120]
[393787324,1762986641867,-151.0,0.00040636,120]
[393787325,1762986641876,-151.0,0.00040636,120]
[393787326,1762986641886,-151.0,0.00040636,120]
[393787327,1762986641895,-238.6492,0.00040636,120]
[393787328,1762986641905,-151.0,0.00040636,120]
[393787329,1762986641914,-151.0,0.00040636,120]
[393787330,1762986641923,-151.0,0.00040636,120]
[393787331,1762986641932,-151.0,0.00040636,120]
[393787332,1762986641942,-151.0,0.00040636,120]
[393787333,1762986641951,-151.0,0.00040636,15]
[393787334,1762986641960,-151.0,0.00040636,15]
[393787335,1762986641969,-152.271596,0.00040636,120]
[393787336,1762986641978,-151.0,0.00040636,15]
[393787337,1762986641988,-151.0,0.00040636,120]
[393787338,1762986641997,-151.0,0.00040636,120]
[393787339,1762986642006,-151.0,0.00040636,120]
[393787340,1762986642015,-151.0,0.00040636,30]
[393787341,1762986642025,-151.0,0.00040636,30]
[393787342,1762986642034,-151.0,0.00040636,30]
[393787343,1762986642043,-151.0,0.00040636,120]
[393787344,1762986642052,-151.0,0.00040636,30]
[393787345,1762986642061,-265.016433,0.00040636,120]
[393787346,1762986642070,-151.0,0.00040636,30]
[393787347,1762986642079,-151.0,0.00040636,30]
[393787348,1762986642088,-151.0,0.00040636,30]
[393787349,1762986642097,-151.0,0.00040636,30]
[393787350,1762986642106,-151.0,0.00040636,30]
[393787351,1762986642115,-151.0,0.00040636,30]
[393787352,1762986642124,-151.0,0.00040636,30]
[393787353,1762986642132,-151.0,0.00040636,30]
[393787354,1762986642141,-151.0,0.00040636,30]
[393787355,1762986642150,-160.837888,0.00040636,30]
[393787356,1762986642159,-155.626196,0.00040636,120]
[393787357,1762986642168,-607.76391769,0.00040636,30]
[393787358,1762986642177,-200.0,0.00040636,7]
[393787359,1762986642187,-151.0,0.00040636,120]
[393787360,1762986642195,-151.0,0.00040636,120]
[393787361,1762986642204,-151.0,0.00040636,120]
[393787362,1762986642213,-240.080076,0.00040636,120]
[393787363,1762986642222,-151.0,0.00040636,120]
[393787364,1762986642230,-154.927596,0.00040636,120]
[393787365,1762986642239,-4722059.79391885,0.00040636,7]
[393787366,1762986642253,-3951.2,0.00040636,7]
[393787367,1762986642263,-341.3641035,0.00040636,7]
[393787368,1762986642277,-682.81730511,0.00040636,7]
[393787369,1762986642330,-4180.0,0.00040636,7]
[393787370,1762986642340,-684.31611847,0.00040636,7]
[393787371,1762986642358,-39001.81087817,0.00040636,7]
[393787372,1762986642377,-3927.8227796,0.00040636,7]
[393787373,1762986642387,-2366.0374395,0.00040636,7]
[393787379,1762986642787,-1.7e-07,0.00040636,7]
[393787380,1762986642979,-489.64607935,0.00035,7]
[393787381,1762986642991,-398.55922036,0.00035,7]
[393787386,1762986643050,-111.79470029,0.00035,7]
[393787387,1762986643060,-193.26402996,0.00040636,7]
[393787388,1762986643076,-6741.15209988,0.00040636,7]
[393787389,1762986643132,-3830.68459282,0.00040636,7]
[393787390,1762986645794,-1030.39263357,0.00036521,2]
[393787391,1762986645806,-11765.30736643,0.00036521,2]
[393787392,1762986645816,-15233.41727259,0.00036589,2]
[393787393,1762986645827,-265.59999999,0.00036589,2]
[393787394,1762986645858,-9500.98272742,0.00036589,2]
[393787395,1762986645869,-1317.0,0.00040505,2]
[393787396,1762986645879,-14982.01727236,0.00040636,7]
[393787397,1762986645944,-465.52920374,0.00040636,7]
[393787398,1762986645956,-3315.80123366,0.00040636,7]
[393787399,1762986645967,-3142.38438997,0.00040636,7]
[393787400,1762986645979,-976.095,0.00040636,7]
[393787401,1762986646152,-18895.29040363,0.00040636,7]
[393787410,1762986725503,154.74,0.00040636,120]
[393787412,1762986735807,282.633042,0.00040636,30]
[393787414,1762986812712,601.71,0.00013699,2]
[393787417,1762986817765,-556.40440631,0.00020187,2]
[393787510,1762987089380,300.0,0.00022206,120]
[393787514,1762987144823,195.0,0.00022206,120]
[393787527,1762987332462,286.89974857,0.0004061,30]
[393787535,1762987519276,451.73,0.00040612,30]
[393787536,1762987525216,702.0,0.00040612,30]
[393787543,1762987736954,250.0,0.00017,2]
[393787544,1762987747928,-224.40333237,0.00019,2]
[393787545,1762987748123,-75.59666763,0.00019,2]
[393787546,1762987748153,-45.30559369,0.00020187,2]
[393787558,1762987831906,-601.71,0.00026676,2]
[393787559,1762987831917,-150.0,0.00029209,2]
[393787560,1762987831926,-150.0,0.00029346,2]
[393787561,1762987831936,-160.0,0.00030273,2]
[393787562,1762987831946,-180.23,0.0003029,2]
[393787563,1762987831955,-102.46085279,0.00033165,2]
[393787564,1762987831978,-499.24914721,0.00033165,2]
[393787565,1762987831988,-225.40955069,0.0003442,2]
[393787566,1762987831998,-155.560585,0.0003452,20]
[393787567,1762987832008,-1398.771608,0.00035548,2]
[393787568,1762987832017,-2717.62,0.00035728,2]
[393787569,1762987832027,-225.40955069,0.0003588,2]
[393787570,1762987832037,-319.29367697,0.00036,2]
[393787571,1762987832049,-955.32632303,0.00036,2]
[393787572,1762987832059,-18603.0,0.00036455,2]
[393787573,1762987832068,-152.0,0.00036508,3]
[393787574,1762987832078,-1600.0,0.00036547,3]
[393787575,1762987832087,-1200.0,0.00036548,3]
[393787576,1762987832097,-300.0,0.00036548,3]
[393787578,1762987832106,-400.0,0.00036549,3]
[393787579,1762987832115,-2530.68,0.0003655,2]
[393787581,1762987832125,-2516.0,0.0003655,2]
[393787584,1762987832135,-7773.64530245,0.0003655,2]
[393787586,1762987832147,-12226.34469755,0.0003655,2]
[393787587,1762987832160,-1000.5618557,0.0003656,30]
[393787588,1762987832170,-1000.59037472,0.0003656,30]
[393787589,1762987832183,-1000.0,0.0003656,30]
[393787590,1762987832195,-1000.0,0.0003656,30]
[393787591,1762987832205,-1869.15730544,0.00036681,2]
[393787592,1762987832217,-630.84269456,0.00036681,2]
[393787593,1762987832227,-1274.62,0.0003672,2]
[393787594,1762987832239,-1084.96928651,0.00036732,2]
[393787595,1762987832248,-300.0,0.00037141,7]
[393787596,1762987832258,-150.0,0.00037278,7]
[393787598,1762987832268,-225.40955069,0.0003734,2]
[393787600,1762987832278,-1274.62,0.0003744,2]
[393787602,1762987832288,-504.83378329,0.000375,5]
[393787604,1762987832298,-152.0,0.00037508,4]
[393787606,1762987832308,-835.66488113,0.00037705,2]
[393787608,1762987832318,-1236.29,0.00037707,30]
[393787609,1762987832328,-1010.0,0.00037768,2]
[393787610,1762987832344,-238.64,0.00037843,2]
[393787611,1762987832363,-1259.46,0.0003785,2]
[393787612,1762987832383,-5000.0,0.00037921,2]
[393787613,1762987832396,-1010.0,0.0003799,120]
[393787614,1762987832412,-2000.0,0.00038,2]
[393787615,1762987832428,-585.0,0.0003801,2]
[393787616,1762987832443,-610.0,0.00038123,2]
[393787617,1762987832459,-3992.72,0.00038133,2]
[393787618,1762987832474,-371.88,0.00038296,2]
[393787619,1762987832485,-500.0,0.00038325,2]
[393787620,1762987832499,-2505.74876831,0.00038378,2]
[393787621,1762987832896,-1015.72168011,0.00038378,2]
[393787622,1762987832923,-29621.42955158,0.00038378,2]
[393787623,1762987832938,-2000.0,0.000384,2]
[393787624,1762987832952,-150.0,0.00038468,2]
[393787625,1762987832963,-302.07,0.00038485,120]
[393787626,1762987832975,-9970.51,0.00038495,2]
[393787627,1762987832987,-567.61,0.000385,2]
[393787628,1762987832999,-152.0,0.00038508,5]
[393787629,1762987833011,-407.0,0.00038631,2]
[393787630,1762987833036,-4262.29,0.00038677,2]
[393787631,1762987833053,-1296.874,0.00038677,52]
[393787632,1762987833070,-563.26,0.00038695,2]
[393787633,1762987833086,-1010.0,0.00038799,7]
[393787634,1762987833100,-2258.0,0.00038898,7]
[393787635,1762987833116,-168.0,0.00038977,2]
[393787636,1762987833131,-407.0,0.00039002,7]
[393787637,1762987833144,-407.0,0.00039029,120]
[393787638,1762987833161,-407.0,0.00039051,7]
[393787639,1762987833173,-200.0,0.00039126,5]
[393787640,1762987833187,-407.0,0.00039259,2]
[393787641,1762987833200,-238.64,0.00039262,2]
[393787642,1762987833213,-800.0,0.00039275,5]
[393787643,1762987833226,-2257.0,0.00039395,2]
[393787644,1762987833239,-2089.19425802,0.00039485,5]
[393787645,1762987833252,-152.0,0.00039508,6]
[393787646,1762987833264,-2257.0,0.00039585,2]
[393787647,1762987833276,-601.71,0.00039654,2]
[393787648,1762987833289,-500.0,0.00039768,2]
[393787649,1762987833301,-500.0,0.00039768,20]
[393787650,1762987833314,-500.0,0.00039768,20]
[393787651,1762987833327,-500.0,0.00039768,20]
[393787652,1762987833341,-500.0,0.00039799,20]
[393787653,1762987833353,-500.0,0.00039799,20]
[393787654,1762987833366,-166.66,0.00039833,2]
[393787655,1762987833375,-500.0,0.000399,14]
[393787656,1762987833385,-1100.0,0.0004,14]
[393787657,1762987833395,-2031.0,0.0004,2]
[393787658,1762987833405,-2031.0,0.0004,2]
[393787659,1762987833415,-2031.0,0.0004,2]
[393787660,1762987833425,-2031.0,0.0004,2]
[393787661,1762987833435,-2031.0,0.0004,2]
[393787662,1762987833445,-2031.0,0.0004,2]
[393787663,1762987833454,-595.39938196,0.0004,2]
[393787664,1762987833467,-414.66607439,0.0004,2]
[393787665,1762987833707,-1020.93454365,0.0004,2]
[393787666,1762987833733,-636.5426751,0.0004,2]
[393787667,1762987833747,-1394.4573249,0.0004,2]
[393787668,1762987833756,-1877.61525607,0.0004,2]
[393787669,1762987833767,-153.38474393,0.0004,2]
[393787670,1762987833776,-773.31716067,0.0004,2]
[393787678,1762987838012,-825.20478151,0.0004,2]
[393787685,1762987839966,-432.47805782,0.0004,2]
[393787686,1762987839976,-267.36429608,0.0004,30]
[393787687,1762987839987,-482.63570392,0.0004,30]
[393787688,1762987839997,-1044.66429608,0.0004,30]
[393787689,1762987840008,-7683.44538826,0.0004,30]
[393787690,1762987840033,-395.92311807,0.0004,30]
[393787691,1762987840045,-875.96719759,0.0004,30]
[393787692,1762987840056,-870.92460379,0.00040054,120]
[393787693,1762987840208,-1386.07539621,0.00040054,120]
[393787694,1762987840218,-3522.0,0.00040071,2]
[393787695,1762987840228,-1700.0,0.000401,14]
[393787696,1762987840238,-280.0424,0.00040155,2]
[393787697,1762987840247,-500.0,0.00040199,2]
[393787698,1762987840256,-183.69568692,0.00040199,20]
[393787699,1762987840267,-500.0,0.00040199,20]
[393787700,1762987840276,-540.13503616,0.00040199,20]
[393787701,1762987840286,-2200.0,0.000402,14]
[393787702,1762987840296,-415.31896,0.0004023,3]
[393787703,1762987840306,-1000.0,0.00040235,2]
[393787704,1762987840315,-2500.0,0.00040255,2]
[393787705,1762987840325,-2089.19425802,0.00040255,6]
[393787707,1762987840335,-2800.0,0.000403,14]
[393787709,1762987840345,-197.11348422,0.00040321,15]
[393787710,1762987840354,-209.63650846,0.00040323,28]
[393787711,1762987840364,-18181.51016577,0.00040325,15]
[393787712,1762987840373,-200.37897285,0.00040326,12]
[393787713,1762987840382,-440.51276501,0.00040336,30]
[393787714,1762987840391,-173.72989842,0.00040339,2]
[393787715,1762987840401,-18181.51016573,0.00040346,15]
[393787716,1762987840410,-18181.51016573,0.00040367,15]
[393787717,1762987840419,-173.72989841,0.00040374,2]
[393787718,1762987840428,-300.0,0.00040378,2]
[393787719,1762987840438,-487.5866993,0.00040379,2]
[393787720,1762987840447,-300.0,0.00040385,2]
[393787721,1762987840456,-18181.51016573,0.00040387,15]
[393787722,1762987840465,-500.0,0.00040393,7]
[393787723,1762987840475,-199.0,0.00040393,7]
[393787724,1762987840484,-500.0,0.000404,14]
[393787725,1762987840493,-16311.8273554,0.00040406,4]
[393787726,1762987840502,-18181.51016573,0.00040408,15]
[393787727,1762987840511,-173.72989841,0.00040408,2]
[393787728,1762987840520,-8155.91367772,0.00040415,4]
[393787729,1762987840529,-97870.9641326,0.00040416,4]
[393787730,1762987840538,-8155.91367772,0.00040422,4]
[393787731,1762987840547,-8155.91367772,0.00040422,4]
[393787732,1762987840556,-371.88,0.00040423,2]
[393787733,1762987840565,-500.0,0.00040425,2]
[393787734,1762987840574,-500.0,0.00040425,2]
[393787735,1762987840582,-500.0,0.00040425,20]
[393787736,1762987840591,-500.0,0.00040425,20]
[393787737,1762987840600,-307.45218061,0.00040425,20]
[393787738,1762987840609,-500.0,0.00040425,7]
[393787739,1762987840618,-106026.87781,0.00040426,4]
[393787740,1762987840627,-208289.009463,0.00040426,4]
[393787741,1762987840636,-150.25,0.00040426,2]
[393787742,1762987840645,-18181.51016573,0.00040429,15]
[393787743,1762987840653,-7714.40775788,0.00040429,4]
[393787744,1762987840662,-415.31897,0.0004043,4]
[393787745,1762987840670,-300.0,0.00040431,2]
[393787746,1762987840679,-500.0,0.00040434,20]
[393787747,1762987840688,-500.0,0.00040434,20]
[393787748,1762987840697,-500.0,0.00040435,2]
[393787749,1762987840706,-500.0,0.00040435,2]
[393787750,1762987840715,-500.0,0.00040435,2]
[393787751,1762987840725,-500.0,0.00040435,2]
[393787752,1762987840734,-500.0,0.00040435,2]
[393787753,1762987840743,-500.0,0.00040435,2]
[393787754,1762987840752,-500.0,0.00040435,20]
[393787755,1762987840762,-500.0,0.00040435,7]
[393787756,1762987840771,-500.0,0.00040435,7]
[393787757,1762987840780,-420000.0,0.00040436,2]
[393787758,1762987840789,-15428.8155158,0.00040442,4]
[393787759,1762987840798,-173.72989841,0.00040443,2]
[393787760,1762987840807,-18181.51016573,0.0004045,15]
[393787761,1762987840817,-300.0,0.0004046,2]
[393787762,1762987840827,-7714.40775788,0.00040461,4]
[393787763,1762987840837,-300.0,0.00040466,2]
[393787764,1762987840846,-18181.51016573,0.0004047,15]
[393787765,1762987840856,-300.0,0.00040472,2]
[393787766,1762987840866,-500.0,0.00040473,5]
[393787767,1762987840875,-505.85898911,0.00040473,5]
[393787768,1762987840885,-500.0,0.00040473,5]
[393787769,1762987840895,-500.0,0.00040473,5]
[393787770,1762987840904,-500.0,0.00040473,5]
[393787771,1762987840914,-500.0,0.00040473,5]
[393787772,1762987840923,-500.0,0.00040473,5]
[393787773,1762987840933,-173.72989841,0.00040477,2]
[393787774,1762987840943,-7714.40775788,0.00040479,4]
[393787775,1762987840952,-7714.40775788,0.00040481,4]
[393787776,1762987840962,-18181.51016573,0.00040491,15]
[393787777,1762987840971,-500.0,0.000405,14]
[393787778,1762987840980,-7714.40775788,0.000405,4]
[393787779,1762987840990,-7714.40775788,0.00040504,4]
[393787780,1762987840998,-152.0,0.00040508,7]
[393787781,1762987841008,-500.0,0.00040509,30]
[393787782,1762987841017,-500.0,0.00040509,30]
[393787783,1762987841027,-500.0,0.00040509,30]
[393787784,1762987841036,-500.0,0.00040509,30]
[393787785,1762987841046,-500.0,0.00040509,30]
[393787786,1762987841056,-209.63650846,0.00040512,28]
[393787787,1762987841066,-173.72989841,0.00040512,2]
[393787788,1762987841076,-360.84756809,0.00040512,2]
[393787789,1762987841085,-588.63016062,0.00040512,8]
[393787790,1762987841095,-197.11348422,0.00040512,15]
[393787791,1762987841104,-18181.51016573,0.00040512,15]
[393787792,1762987841114,-151.0,0.00040521,14]
[393787793,1762987841124,-574.0,0.00040524,2]
[393787794,1762987841133,-608.0,0.00040524,2]
[393787795,1762987841143,-3427.0,0.00040524,2]
[393787796,1762987841154,-1317.0,0.00040524,2]
[393787797,1762987841166,-580.162,0.00040524,2]
[393787798,1762987841176,-1189.0,0.00040524,2]
[393787799,1762987841186,-1597.0,0.00040524,2]
[393787800,1762987841196,-821.0,0.00040524,2]
[393787801,1762987841206,-813.0,0.00040524,2]
[393787802,1762987841215,-1274.0,0.00040524,2]
[393787803,1762987841224,-6666.0,0.00040524,2]
[393787804,1762987841235,-2143.0,0.00040524,2]
[393787805,1762987841246,-150.0,0.00040524,2]
[393787806,1762987841256,-560.0,0.00040524,2]
[393787807,1762987841267,-2272.0,0.00040524,5]
[393787808,1762987841276,-33295.3526,0.00040536,2]
[393787809,1762987841285,-1000.0,0.00040536,2]
[393787810,1762987841295,-500.0,0.00040573,5]
[393787811,1762987841304,-336.41765726,0.00040573,5]
[393787812,1762987841314,-500.0,0.00040573,5]
[393787813,1762987841324,-500.0,0.00040573,5]
[393787814,1762987841333,-500.0,0.00040573,5]
[393787815,1762987841343,-517.85474684,0.00040573,5]
[393787816,1762987841352,-999.0,0.0004059,120]
[393787817,1762987841362,-500.0,0.00040595,120]
[393787818,1762987841371,-5000.0,0.000406,120]
[393787819,1762987841380,-150.0,0.000406,60]
[393787820,1762987841390,-611.45,0.000406,30]
[393787821,1762987841399,-500.0,0.000406,14]
[393787822,1762987841408,-500.0,0.000406,7]
[393787823,1762987841418,-500.0,0.000406,7]
[393787824,1762987841429,-461067.7603937,0.00040601,2]
[393787825,1762987841439,-1196.6377456,0.00040601,2]
[393787826,1762987841449,-1151.2281596,0.00040601,2]
[393787827,1762987841459,-29878.5969061,0.00040601,2]
[393787828,1762987841468,-150.25,0.00040602,2]
[393787829,1762987841478,-150.25,0.00040602,2]
[393787830,1762987841487,-525.12,0.00040603,2]
[393787831,1762987841497,-20584.0785156,0.00040603,2]
[393787832,1762987841506,-347.9650795,0.00040605,120]
[393787833,1762987841516,-500.0,0.00040608,7]
[393787834,1762987841527,-151.0,0.00040609,14]
[393787835,1762987841537,-151.0,0.00040609,120]
[393787836,1762987841546,-151.0,0.00040609,120]
[393787837,1762987841555,-151.0,0.00040609,120]
[393787838,1762987841565,-151.0,0.00040609,120]
[393787839,1762987841575,-151.0,0.00040609,120]
[393787840,1762987841584,-151.0,0.00040609,120]
[393787841,1762987841594,-151.0,0.00040609,120]
[393787842,1762987841603,-440.51276501,0.0004061,30]
[393787843,1762987841613,-440.51276501,0.0004061,30]
[393787844,1762987841623,-1117.39214498,0.0004061,2]
[393787845,1762987841632,-151.988276,0.0004061,120]
[393787846,1762987841642,-151.0,0.0004061,120]
[393787847,1762987841652,-151.0,0.0004061,120]
[393787848,1762987841662,-151.0,0.0004061,120]
[393787849,1762987841671,-253.0,0.0004061,120]
[393787850,1762987841681,-151.0,0.0004061,30]
[393787851,1762987841691,-151.0,0.0004061,30]
[393787852,1762987841700,-151.0,0.0004061,120]
[393787853,1762987841709,-151.0,0.0004061,120]
[393787854,1762987841719,-151.755824,0.0004061,120]
[393787855,1762987841729,-170.049517,0.0004061,120]
[393787856,1762987841738,-151.0,0.0004061,120]
[393787857,1762987841748,-151.0,0.0004061,120]
[393787858,1762987841758,-151.0,0.0004061,120]
[393787859,1762987841767,-153.311613,0.0004061,120]
[393787860,1762987841778,-151.0,0.0004061,120]
[393787861,1762987841787,-151.0,0.0004061,120]
[393787862,1762987841797,-151.0,0.0004061,120]
[393787863,1762987841806,-151.0,0.0004061,120]
[393787864,1762987841815,-500.0,0.00040611,7]
[393787865,1762987841824,-500.0,0.00040611,7]
[393787866,1762987841834,-500.0,0.00040611,7]
[393787867,1762987841844,-500.0,0.00040611,7]
[393787868,1762987841853,-500.0,0.00040611,7]
[393787869,1762987841862,-3664535.93250874,0.00040612,7]
[393787871,1762987843287,-150.0,0.0003801,2]
[393787872,1762987843296,-150.0,0.0003801,120]
[393787873,1762987843306,-101450.68399999,0.00040612,7]
[393787874,1762987843333,-2343.82000282,0.00040612,7]
[393787878,1762987846077,-6482.0,0.00040524,2]
[393787879,1762987846087,-8100.82821285,0.00040612,7]
[393787880,1762987846303,-727.26841493,0.00040612,7]
[393787881,1762987846364,-1081.80000113,0.00040612,7]
[393787882,1762987846428,-1050.4494003,0.00040612,7]
[393787883,1762987846461,-25072.94472366,0.00040612,7]
[393787884,1762987846475,-160715.48039803,0.00040612,7]
[393787885,1762987846488,-29415.62555829,0.00040612,7]
[393787887,1762987846501,-35264.84852492,0.00040612,7]
[393787888,1762987846512,-3313.79454463,0.00040612,7]
[393787902,1762987924588,333.71070001,0.00040612,120]
[393787903,1762987924878,250.0,0.00040612,120]
[393787904,1762987925668,250.0,0.00040612,120]
[393787905,1762987926122,250.0,0.00040612,120]
[393787906,1762987926741,250.0,0.00040612,120]
[393787907,1762987927243,151.0,0.00040612,120]
[393787908,1762987927343,250.0,0.00040612,120]
[393787909,1762987927507,169.14659638,0.00040612,120]
[393787910,1762987927637,151.0,0.00040612,120]
[393787911,1762987927853,151.0,0.00040612,120]
[393787912,1762987927935,250.0,0.00040612,120]
[393787913,1762987928243,151.0,0.00040612,120]
[393787914,1762987928495,151.0,0.00040612,120]
[393787915,1762987928569,250.0,0.00040612,120]
[393787916,1762987928871,151.0,0.00040612,120]
[393787917,1762987929153,151.0,0.00040612,120]
[393787918,1762987929247,250.0,0.00040612,120]
[393787919,1762987929501,151.0,0.00040612,120]
[393787920,1762987929639,250.0,0.00040612,120]
[393787921,1762987929734,151.0,0.00040612,120]
[393787922,1762987929803,250.0,0.00040612,120]
[393787923,1762987930128,151.0,0.00040612,120]
[393787924,1762987930271,250.0,0.00040612,120]
[393787925,1762987930346,151.0,0.00040612,120]
[393787926,1762987930424,250.0,0.00040612,120]
[393787927,1762987930742,151.0,0.00040612,120]
[393787928,1762987930818,151.0,0.00040612,120]
[393787929,1762987930895,250.0,0.00040612,120]
[393787930,1762987930964,151.0,0.00040612,120]
[393787932,1762987931037,250.0,0.00040612,120]
[393787933,1762987931368,151.0,0.00040612,120]
[393787934,1762987931464,250.0,0.00040612,120]
[393787935,1762987931534,151.0,0.00040612,120]
[393787936,1762987931603,151.0,0.00040612,120]
[393787937,1762987931965,151.0,0.00040612,120]
[393787938,1762987932219,250.0,0.00040612,120]
[393787939,1762987932280,151.0,0.00040612,120]
[393787940,1762987932351,151.0,0.00040612,120]
[393787941,1762987932412,250.0,0.00040612,120]
[393787942,1762987932658,250.0,0.00040612,120]
[393787943,1762987932734,250.0,0.00040612,120]
[393787944,1762987932798,151.0,0.00040612,120]
[393787945,1762987932893,250.0,0.00040612,120]
[393787946,1762987933210,151.0,0.00040612,120]
[393787947,1762987933287,250.0,0.00040612,120]
[393787948,1762987933361,151.0,0.00040612,120]
[393787949,1762987933429,250.0,0.00040612,120]
[393787950,1762987933497,250.0,0.00040612,120]
[393787951,1762987933582,151.0,0.00040612,120]
[393787952,1762987933814,151.0,0.00040612,120]
[393787953,1762987933888,250.0,0.00040612,120]
[393787954,1762987933959,151.0,0.00040612,120]
[393787955,1762987934169,250.0,0.00040612,120]
[393787956,1762987934247,250.0,0.00040612,120]
[393787957,1762987934316,250.0,0.00040612,120]
[393787958,1762987934391,151.0,0.00040612,120]
[393787959,1762987934536,250.0,0.00040612,120]
[393787960,1762987934649,250.0,0.00040612,120]
[393787961,1762987934718,250.0,0.00040612,120]
[393787962,1762987934781,151.0,0.00040612,120]
[393787963,1762987934843,250.0,0.00040612,120]
[393787964,1762987934918,151.0,0.00040612,120]
[393787965,1762987935150,250.0,0.00040612,120]
[393787966,1762987935250,250.0,0.00040612,120]
[393787967,1762987935324,151.0,0.00040612,120]
[393787968,1762987935393,250.0,0.00040612,120]
[393787969,1762987935463,250.0,0.00040612,120]
[393787970,1762987935898,250.0,0.00040612,120]
[393787971,1762987935976,250.0,0.00040612,120]
[393787972,1762987936050,151.0,0.00040612,120]